Cogmind - Beta 13 @@@ ROGUE MODE // 2024.07.04 @ 15:19:46 Player: Minty Result: Destroyed by Y-45 Defender with Heavy Assault Rifle Performance ------------- Evolutions (2) 1000 Regions Visited (3) 600 Robots Destroyed (46) 230 Value Destroyed (1195) 1195 Prototype IDs (3) 60 Alien Tech Used (0) 0 Bonus (-171) -171 TOTAL SCORE: 2914 Bonus ------- High Alert Combat Kills 11 Follower Combat Kills 7 Friendly Fire -189 Cogmind --------- Core Integrity 0/550 Matter 231/300 Energy 66/100 System Corruption 4% Temperature Cool (11) Movement Flying (35) Location -8/Materials Parts ------- > --- POWER (1) -------- (None) > --- PROPULSION (2) --- Cesium-ion Thruster > --- UTILITY (5) ------ Cooling System (fused) Improved Signal Interpreter Hacking Suite System Shield > --- WEAPON (3) ------- (None) > --- INVENTORY (5) ---- High-capacity Battery (250) Improved Sensor Array Advanced Assault Cannon Advanced Assault Cannon EMP Blaster Peak State ------------ > --- POWER ------------ Improved Ion Engine > --- PROPULSION ------- Armored Wheel Armored Wheel > --- UTILITY ---------- Small Storage Unit Improved Sensor Array Improved Signal Interpreter Hacking Suite System Shield > --- WEAPON ----------- Advanced Assault Cannon Advanced Assault Cannon Advanced Assault Cannon > --- INVENTORY -------- Improved Ion Engine Cooling System High-capacity Battery Improved Medium Laser Light EM Pulse Cannon EMP Blaster Grenade Launcher Rocket Launcher [Rating: 32] Favorites ----------- Power Improved Ion Engine Engine Improved Ion Engine Propulsion Armored Wheel Treads Light Treads Leg Aluminum Leg Wheel Armored Wheel Flight Unit Cesium-ion Thruster Utility Small Storage Unit Device Structural Scanner Storage Small Storage Unit Processor Improved Signal Interpreter Hackware Hacking Suite Protection Propulsion Shielding Weapon EM Shotgun Energy Gun EM Shotgun Energy Cannon Light EM Pulse Cannon Ballistic Gun Light Assault Rifle Ballistic Cannon Advanced Assault Cannon Launcher EMP Blaster Build | -11 -10 -9 -8 ------- Run | Yrd Mat Mat Mat Slots Evolved 4 | . . 2 2 Power . | . . . . Propulsion . | . . . . Utility 3 | . . 1 2 Weapon 1 | . . 1 . Parts Attached 50 | . 17 8 25 Power 1 | . 1 . . Engine 1 | . 1 . . Core . | . . . . Reactor . | . . . . Propulsion 16 | . 10 2 4 Treads 4 | . 4 . . Leg . | . . . . Wheel 11 | . 6 2 3 Hover . | . . . . Flight 1 | . . . 1 Utility 12 | . 2 2 8 Device 6 | . . 2 4 Storage . | . . . . Processor 1 | . . . 1 Hackware 2 | . . . 2 Protection 3 | . 2 . 1 Artifact . | . . . . Weapon 21 | . 4 4 13 Energy Gun 10 | . 4 3 3 Energy Cannon 1 | . . . 1 Ballistic Gun 1 | . . . 1 Ballistic Cannon 4 | . . . 4 Launcher 5 | . . 1 4 Special Weapon . | . . . . Impact Weapon . | . . . . Slashing Weapon . | . . . . Piercing Weapon . | . . . . Special Melee Weapon . | . . . . Unidentified Prototypes 1 | . . 1 . Corrupted Parts 1 | . . . 1 System Corruption 4 | . . . 4 Parts Lost 9 | . 1 . 8 Power 1 | . . . 1 Propulsion 2 | . . . 2 Utility . | . . . . Weapon 6 | . 1 . 5 Highest Loss Streak 8 | . 1 . 8 To Critical Strikes . | . . . . Average Slot Usage (%) 96 | . 95 99 96 Engine 11 | . 14 11 8 Treads 5 | . 13 . . Leg 1 | . 4 . . Wheel 14 | . 9 22 17 Device 10 | . . 22 14 Storage 11 | . 14 11 9 Processor 2 | . . . 5 Hackware 4 | . . . 11 Protection 6 | . 11 . 3 Energy Gun 19 | . 25 32 7 Ballistic Cannon 5 | . . . 15 Naked Turns . | . . . . Heaviest Build 36 | 10 25 22 36 Greatest Support 46 | 20 46 24 24 Greatest Overweight (x) 2 | . 2 1 2 Average Overweight (x) . | . . . . Largest Inventory Capacity 8 | . 8 8 8 Average Capacity 7 | . 8 8 7 Most Carried 8 | . 8 8 8 Average Carried 7 | . 7 7 7 Final Capacity 8 | 8 8 8 5 Final Carried 8 | 6 8 8 5 Class Distribution -------------------- 42% | Mutant 19% | Skirmisher 16% | Tank 13% | Hacker-Skirmisher 3% | Scavenger-Skirmisher Dominant Class ---------------- Mutant | -10/Materials Skirmisher | -9/Materials Tank | -8/Materials Resources | -11 -10 -9 -8 ----------- Run | Yrd Mat Mat Mat Matter Collected 1070 | 160 224 91 595 Remotely . | . . . . Salvage Created 1261 | . 384 148 729 Parts 86 | . 27 17 42 Haulers Intercepted . | . . . . Recyclers Shooed . | . . . . Parts Field Recycled . | . . . . Retrieved Matter . | . . . . Parts Self-Destructed . | . . . . Prevented . | . . . . Kills | -11 -10 -9 -8 ------- Run | Yrd Mat Mat Mat Combat Hostiles Destroyed 29 | . 9 5 15 Guns 13 | . 7 2 4 Cannons 1 | . . . 1 AOE 14 | . 2 3 9 Classes Destroyed 11 | . 5 2 4 Worker 5 | . 2 1 2 Builder 2 | . . 1 1 Tunneler 1 | . . . 1 Mechanic 1 | . . . 1 Operator 3 | . 2 . 1 Watcher 4 | . 2 1 1 Swarmer 11 | . 5 3 3 Grunt 14 | . 5 1 8 Duelist 1 | . . . 1 Sentry 3 | . . 1 2 Hunter 1 | . . . 1 Best Kill Streak 5 | . 5 5 5 Combat Bots Only 5 | . 3 3 5 Max Kills in Single Turn 3 | . 2 3 2 Gunslinging 1 | . . . 1 Exploded 3 | . 1 3 2 Melee . | . . . . Uniques/NPCs Destroyed . | . . . . Combat | -11 -10 -9 -8 -------- Run | Yrd Mat Mat Mat Hostile Shots Fired 177 | . 31 8 138 Missed 60 | . 11 6 43 Damage Taken 1814 | . 227 30 1557 Core 608 | . 36 14 558 Absorbed by Shields . | . . . . Redirected to Shielding 14 | . 6 . 8 Regen/Repaired (Parts) 31 | . 31 . . Core Remaining (%) 93 | 100 85 96 . Volleys Fired 96 | . 29 7 60 Largest 3 | . 2 3 3 Hottest 175 | . 90 141 175 Shots Fired 195 | . 51 18 126 Gun 116 | . 51 17 48 Cannon 60 | . . . 60 Launcher 19 | . . 1 18 Special . | . . . . Kinetic 56 | . 3 . 53 Thermal 52 | . 1 5 46 Explosive 7 | . . 1 6 Electromagnetic 80 | . 47 12 21 Robot Hit Streak 8 | . 7 2 8 Robot Miss Streak 5 | . 5 3 5 Penetration Max . | . . . . Secondary Targets 1 | . . . 1 Max Gunslinging Chain 1 | . . . 1 Shots Hit Robots 110 | . 31 9 70 Core Hits 72 | . 23 8 41 Critical Kills . | . . . . Critical Parts Destroyed . | . . . . Critical Strikes 6 | . . 3 3 Burn 5 | . . 2 3 Corrupt 1 | . . 1 . Melee Attacks . | . . . . Impact . | . . . . Slashing . | . . . . Piercing . | . . . . Sneak Attacks . | . . . . Combat Hostiles . | . . . . Follow-up Attacks . | . . . . Damage Inflicted 2996 | . 603 400 1993 Guns 1150 | . 421 137 592 Cannons 639 | . . . 639 Explosions 1207 | . 182 263 762 Melee . | . . . . Ramming . | . . . . Kinetic 586 | . 27 . 559 Thermal 1102 | . 182 176 744 Explosive 314 | . . 138 176 Electromagnetic 994 | . 394 86 514 Impact . | . . . . Slashing . | . . . . Piercing . | . . . . Highest Corruption 4 | . 1 . 4 Average Corruption 1 | . 1 . 4 Corruption Purged . | . . . . Corruption Blocked . | . . . . Effects 11 | . 4 . 7 Matter Fused 4 | . 2 . 2 Heat Flow Errors 1 | . 1 . . Parts Fused 2 | . 1 . 1 Misfires 1 | . . . 1 Weapon Failures 3 | . . . 3 Overload Shots . | . . . . Overflow Damage 84 | . . 35 49 Projectiles 38 | . . . 38 Explosions 46 | . . 35 11 Melee . | . . . . Knockbacks 5 | . . . 5 Impact . | . . . . Kinetic 5 | . . . 5 Secondary . | . . . . Self-Inflicted Damage 129 | . 17 . 112 Shots 9 | . 1 . 8 Rammed . | . . . . Targets Rammed . | . . . . Kicked . | . . . . Crushed . | . . . . Highest Temperature 339 | . 315 137 339 Average Temperature 107 | . 84 44 131 Received Heat Transfer 870 | . 78 9 783 Effects 8 | . . . 8 Interference 3 | . . . 3 Matter Decay 1 | . . . 1 Short Circuit 3 | . . . 3 Damage (minor) 1 | . . . 1 Siege Activations . | . . . . Robots Corrupted . | . . . . Combat Hostiles . | . . . . Parts Fried 1 | . . . 1 Impact Corruptions . | . . . . Robots Melted 1 | . . . 1 Combat Hostiles 1 | . . . 1 Parts Melted 7 | . . . 7 Heat Transferred 2289 | . 200 359 1730 Parts Sabotaged . | . . . . Parts Stolen . | . . . . Parts Stripped . | . . . . Power Chain Reactions 10 | . 4 . 6 Alert | -11 -10 -9 -8 ------- Run | Yrd Mat Mat Mat Peak Influence 405 | . 308 378 405 Initial 68 | . . 68 . Average 160 | . 143 211 154 Maximum Alert Level 2 | . 1 1 2 Low Security (%) 58 | . 75 40 49 Level 1 40 | . 24 59 48 Level 2 . | . . . 2 Level 3 . | . . . . Level 4 . | . . . . Level 5 . | . . . . High Security . | . . . . Max Security . | . . . . Squads Dispatched 11 | . 4 2 5 Investigation 6 | . 3 1 2 Extermination . | . . . . Reinforcement 3 | . 1 1 1 Assault . | . . . . Garrison 2 | . . . 2 Intercept . | . . . . Searches Triggered . | . . . . Construction Impeded 1 | . . 1 . Haulers Reinforced . | . . . . Active Scanning Responses . | . . . . Cargo Convoy Interrupts . | . . . . Stealth | -11 -10 -9 -8 --------- Run | Yrd Mat Mat Mat Distress Signals 3 | . 2 . 1 Communications Jammed . | . . . . Distress Signals . | . . . . Times Spotted 53 | . 18 6 29 Peak Tracking Total 11 | . 5 3 11 Tactical Retreats 2 | . . . 2 Traps | -11 -10 -9 -8 ------- Run | Yrd Mat Mat Mat Traps Triggered 3 | . 2 1 . Indirectly . | . . . . Trap Hack Attempts . | . . . . Triggered . | . . . . Disarmed . | . . . . Reprogrammed . | . . . . Reused . | . . . . Traps Extracted . | . . . . Installed . | . . . . Triggered . | . . . . Machines | -11 -10 -9 -8 ---------- Run | Yrd Mat Mat Mat Machines Disabled 14 | . 2 9 3 Max in Single Turn 9 | . 2 9 1 Machines Repaired . | . . . . Machines Dismantled . | . . . . Machines Sabotaged . | . . . . Overloaded Fab Kills . | . . . . Hacking | -11 -10 -9 -8 --------- Run | Yrd Mat Mat Mat Machines Accessed 10 | . 3 5 2 Terminals 7 | . 2 4 1 Fabricators . | . . . . Repair Stations 1 | . 1 . . Recycling Units 1 | . . 1 . Scanalyzers 1 | . . . 1 Garrison Access . | . . . . Total Hacks 49 | . 16 18 15 Successful 34 | . 9 13 12 Failed 15 | . 7 5 3 Catastrophic 2 | . 1 . 1 Database Lockouts . | . . . . Manual 13 | . 4 8 1 Terminals 31 | . 10 16 5 Fabricators . | . . . . Repair Stations 6 | . 6 . . Recycling Units 2 | . . 2 . Scanalyzers 10 | . . . 10 Garrison Access . | . . . . Terminal Hacks 16 | . 4 9 3 Record 1 | . . 1 . Robot Analysis 1 | . . 1 . Prototype ID Bank 1 | . 1 . . Terminal Index 1 | . 1 . . Recycling Unit Index 1 | . . 1 . Alert Level 3 | . 1 1 1 Unreport Threat 5 | . . 3 2 Security Status 1 | . 1 . . Patrol Status 1 | . . 1 . Zone Layout 1 | . . 1 . Fabricator Hacks . | . . . . Repair Station Hacks 3 | . 3 . . Scan Component 2 | . 2 . . Repair 1 | . 1 . . Recycling Unit Hacks 2 | . . 2 . Report Inventory 1 | . . 1 . Retrieve Components 1 | . . 1 . Scanalyzer 8 | . . . 8 Insert Component 4 | . . . 4 Analyze 4 | . . . 4 Garrison Access Hacks . | . . . . Unauthorized Hacks 5 | . 2 2 1 Terminals 4 | . 2 2 . Botnet 4 | . 2 2 . Fabricators . | . . . . Repair Stations . | . . . . Recycling Units . | . . . . Scanalyzers 1 | . . . 1 Extract 1 | . . . 1 Garrison Access . | . . . . Data Cores Recovered 1 | . 1 . . Used 1 | . 1 . . Hacking Detections 9 | . 3 4 2 Full Trace Events 4 | . 2 1 1 Feedback Events 1 | . 1 . . Corruption 1 | . 1 . . Feedback Blocked . | . . . . Robot Schematics Acquired . | . . . . Robots Built . | . . . . Authchips . | . . . . Time . | . . . . Total Robot Build Rating . | . . . . Part Schematics Acquired 9 | . . . 9 Parts Built . | . . . . Authchips . | . . . . Time . | . . . . Total Part Build Rating . | . . . . Parts Repaired 1 | . 1 . . Time 32 | . 32 . . Parts Recycled . | . . . . Recycled Matter . | . . . . Retrieved Matter . | . . . . Retrieved Components 2 | . . 2 . Parts Scanalyzed 4 | . . . 4 Part Schematics Acquired 4 | . . . 4 Parts Damaged . | . . . . Bothacking | -11 -10 -9 -8 ------------ Run | Yrd Mat Mat Mat Used RIF Installer . | . . . . Robots Hacked . | . . . . Non-combat . | . . . . Combat . | . . . . Robot Hacks Applied . | . . . . Relay Couplers Released . | . . . . Fabnet Peak Effective % . | . . . . Robots Rewired 2 | . 1 . 1 Allies Hacked . | . . . . Hacks Repelled . | . . . . Allies | -11 -10 -9 -8 -------- Run | Yrd Mat Mat Mat Total Allies 2 | . 1 . 1 Largest Group 1 | . 1 . 1 Highest-Rated Group 10 | . 8 . 10 Highest-Rated Ally 10 | . 8 . 10 Total Orders . | . . . . Ally Attacks 2 | . 2 . . Total Damage 10 | . 10 . . Kills 1 | . 1 . . Allies Corrupted . | . . . . Allies Melted . | . . . . Intel | -11 -10 -9 -8 ------- Run | Yrd Mat Mat Mat Robot Analysis Total 1 | . . 1 . Derelict Logs Recovered . | . . . . Drone Launches . | . . . . Drone Recoveries . | . . . . Exploration | -11 -10 -9 -8 ------------- Run | Yrd Mat Mat Mat Turns Passed 1347 | . 559 256 532 Spaces Moved 862 | 1 333 247 281 Core 11 | . . . 11 Treads 129 | . 129 . . Legs 63 | 1 62 . . Wheels 654 | . 142 247 265 Hover . | . . . . Flight 5 | . . . 5 Fastest Speed 35 | 120 80 85 35 Average Speed 105 | 120 121 87 101 Slowest Speed 240 | 120 240 95 150 Overloaded Moves . | . . . . Propulsion Burnouts . | . . . . Robots Hopped . | . . . . Cave-ins Triggered . | . . . . Exploration Rate (%) 26 | 2 48 28 27 Regions Visited 3 Branch Regions . Pre-discovered Areas . | . . . . Known Exits Taken . | . . . . Unknown Exits Taken 3 | 1 1 1 . Scrap Searched . | . . . . Spaces Dug . | . . . . Terrain Destroyed 136 | . 13 42 81 Melee . | . . . . Projectile 25 | . . . 25 AOE 111 | . 13 42 56 Terrain Rammed . | . . . . Walls Destroyed . | . . . . Machines Disabled . | . . . . Actions | -11 -10 -9 -8 --------- Run | Yrd Mat Mat Mat Total 1124 | . 437 271 416 Wait 64 | . 32 1 31 Move 859 | . 332 246 281 Hop . | . . . . Pick Up 16 | . 9 5 2 Fast Attach 26 | . 11 1 14 Attach 6 | . 1 2 3 Detach 2 | . 1 . 1 Swap 18 | . 5 5 8 Drop 34 | . 16 4 14 Fire 96 | . 29 7 60 Melee . | . . . . Ram . | . . . . Kick . | . . . . Crush . | . . . . Escape Stasis . | . . . . Rewire 3 | . 1 . 2 Trap . | . . . . Miscellaneous . | . . . . Route ------- -11/Scrapyard -10/Materials -9/Materials -8/Materials History --------- Turn | Location | Event 1 | -11/Scrapyard | Discovered new exit (range 0) 1 | -11/Scrapyard | Entered Materials 305 | -10/Materials | Build established: Mutant 518 | -10/Materials | Repaired EM Shotgun 553 | -10/Materials | Discovered new exit (range 8) 560 | -10/Materials | Entered another Materials area 560 | -9/Materials | Evolved 2 slots: Utility x1, Weapon x1 791 | -9/Materials | Discovered new exit (range 16) 816 | -9/Materials | Entered another Materials area 816 | -8/Materials | Evolved 2 slots: Utility x2 1232 | -8/Materials | Garrison activated, responded to threat 1310 | -8/Materials | Core integrity fell below 50% 1334 | -8/Materials | Core integrity fell below 20% 1348 | -8/Materials | Destroyed by Y-45 Defender with Heavy Assault Rifle Last Messages --------------- 01332_ U-05 Engineer lays Concrete. 01334_ The unstable cave ceiling collapses. 01334_ U-05 Engineer lays Concrete. 01337_ K-01 Serf collects debris. 01337_ W-25 Informer sends out distress signal. 01337_ U-05 Engineer lays Concrete. 01339_ Critical hit (Burn: +37). 01339_ Rocket Launcher destroyed. 01340_ Dropped Sml. Storage Unit. 01341_ K-01 Serf collects debris. 01341_ U-05 Engineer builds a Door. 01342_ The unstable cave ceiling collapses. 01342_ U-05 Engineer lays Concrete. 01343_ The unstable cave ceiling collapses. 01344_ System corrupted: Cooling System fused. 01344_ The unstable cave ceiling collapses. 01344_ K-01 Serf collects debris. 01345_ Acquired Cesium-ion Thruster. 01347_ Acquired 120 matter. 01348_ U-05 Engineer lays Concrete. Map ----- +----------------------------------------------------+ | ?????????????????????????????????????????????????? | | ?????????????????????????????????????????????????? | | ?????????????????????????????????????????????????? | | ?????????????????????????????????????????????????? | | ?????????????????????????????????????????????????? | | ?????????????????????????????????????????????????? | | ?????????????????????????????????????????????????? | | ?????????????????????????????????????????????????? | | ?????????????????????????????????????????????????? | | ?????????????????????????????????????????????????? | | ?????????????????????????????????????????????????? | | ?????????????????????????????????????????????????? | | ???????????????????????????????????#####?????????? | | ??????????????????????????????????? ????????? | | ????????????????????????????????#"S ?????????? | | ????????????????????????????????#""" ?????????? | | ????????????????????????????????# "" ?????????? | | ????????????????????????????????# ?????????? | | ??????????????????????########??# ""?????????? | | ??????????????????????# #??# "??????????? | | ??????????????????????# """ #??# "??????????? | | ??????????????????????+ """ *#?## ??????????## | | ??????????????????????# """ ### # +####???????# | | ??????????????????????# # = ######### | | ??????????????????????# = %[u ## | | ????????????????????#####@ *![= ## | | ????????????????????# [% Y%w [ | = + | | ???????????? ????# ! ! # % %= ## | | ?????????? # ## [ u ! ! ## | | ?????????? gY ## ## #? | | ?????????????###### # ! ] ### ## ### ### | | ??????????????????#?# ] ##?##### ##?# | | ????????????????????########??????# #??# | | ??????????????????????????????????# #??# | | ??????????????????????????????????# #??# | | ??????????????????????????????????# #??# = | | ??????????????????????????????????# #??### ## | | ??????????????????????????????????# #????# # | | ??????????????????????????????????# #????#+## | | ??????????????????????????????????# #??? # # | | ?????????????????????????????????? ?? # # | | ??????????????????????????????????? ?? ?# # | | ??????????????????????????????????? ?/ ?# # | | ?????????????????????????????????????? # ?# # | | ????????????????????????????????????? ?#? ?# # | | ?????????????????????????????????????????####?# # | | ??????????????????????????????????????????????# # | | ??????????????????????????????????????????????? # | | ??????????????????????????????????????????????? # | | ??????????????????????????????????????????????? ## | +----------------------------------------------------+ Best States ------------- Heat Dissipation 53 Energy Generation 12 Energy Capacity 265 Matter Stores 300 Matter Capacity 300 Sight Range 16 Robot Scan Range 15 Terrain Scan Density 10 Armor Coverage 225 Resistance: EX 25 Propulsion Shielding 33 Evasion (%) 55 Recoil Reduction 2 Offensive Hacking 10 Defensive Hacking 10 Item Schematics ----------------- Hcp. Battery | -8/Materials | Scanalyzed Cooling System | -8/Materials | Scanalyzed Lgt. EM Pulse Cannon | -8/Materials | Scanalyzed EMP Blaster | -8/Materials | Scanalyzed Lrg. Storage Unit | -8/Materials | Extracted Hvy. Particle Cannon | -8/Materials | Extracted Assault Cannon | -8/Materials | Extracted Adv. Treads | -8/Materials | Extracted Flight Unit | -8/Materials | Extracted Robot Schematics ------------------ None Fabricated ------------ Nothing Alien Tech Used ----------------- None Achievements -------------- None Challenges ------------ None Game ------ Seed PhysicsFlightFlamer Manual? 0 Play Time 00:15:14 Cumulative 782.3 hours Start 2024.07.04 @ 15:09:07 End 2024.07.04 @ 15:19:46 Sessions 1 Manual Loads 0 Difficulty Rogue Special Mode None Game No. 896 Rogue 618 Adventurer 124 Explorer 154 Win Type - Total 31 Types 25/0/4/1/0/0/0/1/0 Lore% 84 Gallery% 92 Achievement% 77 Wizard Run 0 Options --------- Layout 0 ASCII 0 Keyboard 1 Movement Numpad Keybinds 0 Fullscreen 2 Font 18/Terminus Map View 76x50 Zoom Use 0% Tactical HUD 1 Map Filters NONE Filters NONE Steam 1 RUN: dd26b5ef-ec48-490b-aa87-59d1742b5074